Body Name,Body,Service Level,Expense Type,Expense Code,Narrative,Date,Transaction Number,Amount,Capital and Revenue,Supplier Name,Supplier ID
South Ribble Council,http://statistics.data.gov.uk/doc/local-authority/30UN,Regeneration,Capital Expenditure,C234,Drainage survey. Bamber bridge 1/2 day report.,19/10/2016,0000427480,300.00,Revenue,A&D Drain Services Ltd,132082
South Ribble Council,http://statistics.data.gov.uk/doc/local-authority/30UN,Housing,Cap Grant- Improve Grants,C570,DFG WORKS AT ADDRESS REDACTED,07/10/2016,0000427233,"1,280.00",Revenue,ABBI PROPERTY SERVICES LTD,131357
South Ribble Council,http://statistics.data.gov.uk/doc/local-authority/30UN,Housing,Cap Grant- Improve Grants,C570,DFG WORKS AT ADDRESS REDACTED,12/10/2016,0000427358,"1,400.00",Revenue,ABBI PROPERTY SERVICES LTD,131357
South Ribble Council,http://statistics.data.gov.uk/doc/local-authority/30UN,Housing,Cap Grant- Improve Grants,C570,DFG WORKS AT ADDRESS REDACTED,19/10/2016,0000427472,"1,366.50",Revenue,ABBI PROPERTY SERVICES LTD,131357
South Ribble Council,http://statistics.data.gov.uk/doc/local-authority/30UN,Homelessness,Contributions,4730,provision of Abritas services including support plan 1/10/2016-30/09/2017 Total including VAT 4552.80,07/10/2016,0000427234,"3,794.00",Revenue,ABRITAS LTD,130710
South Ribble Council,http://statistics.data.gov.uk/doc/local-authority/30UN,Information Services,Peripherals,4248,Additional charge to SRBC for exceeding Data Storage and Recovery quota for period of July 16 - September 2016,28/10/2016,0000427652,508.50,Revenue,ABRITAS LTD,130710
South Ribble Council,http://statistics.data.gov.uk/doc/local-authority/30UN,Area 2 - Waste Transport/Eastern & Central Teams,Agency Fees,1121,HIRE OF PERSONNEL - NAME REDACTED (TO WORK 22/8/2016 UNTIL 14/10/2016 - 8 WEEKS) (39 HOURS PER WEEK,07/10/2016,0000427149,362.70,Revenue,ACE PERSONNEL,00015095
South Ribble Council,http://statistics.data.gov.uk/doc/local-authority/30UN,Area 2 - Waste Transport/Eastern & Central Teams,Agency Fees,1121,HIRE OF PERSONNEL - NAME REDACTED (39 HOURS PER WEEK FOR 8 WEEKS) @9.95/HOUR,07/10/2016,0000427154,318.40,Revenue,ACE PERSONNEL,00015095
South Ribble Council,http://statistics.data.gov.uk/doc/local-authority/30UN,Area 2 - Waste Transport/Eastern & Central Teams,Agency Fees,1121,HIRE OF PERSONNEL - NAME REDACTED (TO WORK 22/8/2016 UNTIL 14/10/2016 - 8 WEEKS) (39 HOURS PER WEEK,14/10/2016,0000427281,362.70,Revenue,ACE PERSONNEL,00015095
South Ribble Council,http://statistics.data.gov.uk/doc/local-authority/30UN,Area 2 - Waste Transport/Eastern & Central Teams,Agency Fees,1121,HIRE OF PERSONNEL - NAME REDACTED (39 HOURS PER WEEK FOR 8 WEEKS) @9.95/HOUR,14/10/2016,0000427285,388.05,Revenue,ACE PERSONNEL,00015095
South Ribble Council,http://statistics.data.gov.uk/doc/local-authority/30UN,Area 2 - Waste Transport/Eastern & Central Teams,Agency Fees,1121,HIRE OF PERSONNEL - NAME REDACTED (TO WORK 22/8/2016 UNTIL 14/10/2016 - 8 WEEKS) (39 HOURS PER WEEK,14/10/2016,0000427286,362.70,Revenue,ACE PERSONNEL,00015095
South Ribble Council,http://statistics.data.gov.uk/doc/local-authority/30UN,Area 2 - Waste Transport/Eastern & Central Teams,Agency Fees,1121,HIRE OF PERSONNEL - NAME REDACTED (39 HOURS PER WEEK FOR 8 WEEKS) @9.95/HOUR,14/10/2016,0000427287,318.40,Revenue,ACE PERSONNEL,00015095
South Ribble Council,http://statistics.data.gov.uk/doc/local-authority/30UN,Planning,Professional Fees,4510,Adas Agricultural and Planning Advice for the following planning applications:07/2016/0446  07/2016/0464 07/2016/0248/FUL,12/10/2016,0000427359,"1,227.00",Revenue,ADAS UK LTD,00118727
South Ribble Council,http://statistics.data.gov.uk/doc/local-authority/30UN,Planning,Professional Fees,4510,Preparation of a Planning Process Review for planning application 07/2015/1468/ADE for payment of  inv RIRP 093244,26/10/2016,0000427604,800.00,Revenue,ADAS UK LTD,00118727
South Ribble Council,http://statistics.data.gov.uk/doc/local-authority/30UN,Revenues Plus,Financial,4811,post office trans,07/10/2016,0000427164,"1,188.23",Revenue,ALLPAY LTD,00122276
South Ribble Council,http://statistics.data.gov.uk/doc/local-authority/30UN,Revenues Plus,Financial,4811,paypoint,07/10/2016,0000427164,183.35,Revenue,ALLPAY LTD,00122276
South Ribble Council,http://statistics.data.gov.uk/doc/local-authority/30UN,Revenues Plus,Financial,4811,webcon,07/10/2016,0000427164,46.05,Revenue,ALLPAY LTD,00122276
South Ribble Council,http://statistics.data.gov.uk/doc/local-authority/30UN,Regeneration,Advertising,4842,Gregson Green Newsletters printed x 2500,19/10/2016,0000427361,255.00,Revenue,AMJ LTD (THE STATIONERY STORE),00096946
South Ribble Council,http://statistics.data.gov.uk/doc/local-authority/30UN,Scrutiny,Other Misc,4851,HIRE - FRAME MINI MARQUEE SET FOR THE REACH EVENT - LEYLAND FESTIVAL AS AGREED BY NAME REDACTED,28/10/2016,0000427653,300.00,Revenue,AMJ LTD (THE STATIONERY STORE),00096946
South Ribble Council,http://statistics.data.gov.uk/doc/local-authority/30UN,Regeneration,Other Misc,4851,"Fridge Freezer x1 @ 200 487/0391 Cooker x 1 @ 230  266/0826 Pressure Cooker x 1 @ 30  498/9842 Washing Machine x 1",12/10/2016,0000426986,"1,023.11",Revenue,ARGOS,00101271
South Ribble Council,http://statistics.data.gov.uk/doc/local-authority/30UN,Area 1 - Penwortham Western Parishes,Grounds Maintanance,2040,REPAIR TO DAMAGED BARRIER AT KING STREET CAR PARK LEYLAND,05/10/2016,0000426981,875.00,Revenue,ARK WELDING LTD,130946
South Ribble Council,http://statistics.data.gov.uk/doc/local-authority/30UN,Regeneration,Capital Expenditure,C234,Community Infrastructure Project Support,12/10/2016,0000427362,"1,000.00",Revenue,ARMSTRONG CONSULTING,131444
South Ribble Council,http://statistics.data.gov.uk/doc/local-authority/30UN,Development Enterprise & Comm Mgnt,Other Misc,485K,"x 1,000 Leyland 2017 Calendars @ 1193",12/10/2016,0000426978,"1,193.00",Revenue,B & D PRINT SERVICES LTD,00015134
South Ribble Council,http://statistics.data.gov.uk/doc/local-authority/30UN,Property Services,Rep & Maint Premises,2020,Please carry out work as per your quotation to alter the electrical supply to the garages at Moss Side Depot,19/10/2016,0000427463,587.07,Revenue,BELEC ELECTRICAL LTD,130290
South Ribble Council,http://statistics.data.gov.uk/doc/local-authority/30UN,Property Services,Rep & Maint Premises,2020,"carry out an electrical test on the complete infrastructure of the civic centre. Weekend working 8 till 8, Saturday 17th Sept",19/10/2016,0000427467,"2,160.00",Revenue,BELEC ELECTRICAL LTD,130290
South Ribble Council,http://statistics.data.gov.uk/doc/local-authority/30UN,Property Services,Rep & Maint Premises,2020,Annual Contract 2016/2017 External Lighting/Emergency Lighting Maintenance at Higher Walton Community Centre,21/10/2016,0000427468,69.00,Revenue,BELEC ELECTRICAL LTD,130290
South Ribble Council,http://statistics.data.gov.uk/doc/local-authority/30UN,Property Services,Rep & Maint Premises,2020,Annual Contract 2016/2017 External Lights/Emergency Lighting Maintenance at Leyland Market,21/10/2016,0000427468,46.00,Revenue,BELEC ELECTRICAL LTD,130290
South Ribble Council,http://statistics.data.gov.uk/doc/local-authority/30UN,Property Services,Rep & Maint Premises,2020,Annual Contract 2016/2017 External Lighting/Emergency Lighting Maintenance at Public Conveniences,21/10/2016,0000427468,69.00,Revenue,BELEC ELECTRICAL LTD,130290
South Ribble Council,http://statistics.data.gov.uk/doc/local-authority/30UN,Property Services,Rep & Maint Premises,2020,Annual contract  2016/2017for External Lighting/Emergency  Lighting for Moss Side Community Centre,21/10/2016,0000427468,92.00,Revenue,BELEC ELECTRICAL LTD,130290
South Ribble Council,http://statistics.data.gov.uk/doc/local-authority/30UN,Property Services,Rep & Maint Premises,2020,Annual Contract 2016/2017 Electrical Testing and Electrical  Installation Test at Leyland Market,28/10/2016,0000427660,414.00,Revenue,BELEC ELECTRICAL LTD,130290
South Ribble Council,http://statistics.data.gov.uk/doc/local-authority/30UN,Shared Financial Services,Consultancy Fees,4541,Peer support - Licensing manager,12/10/2016,0000427297,"7,000.00",Revenue,Blackpool Council,131818
South Ribble Council,http://statistics.data.gov.uk/doc/local-authority/30UN,Healthy Communities,Other Misc,4851,40 non contact student books - 10.00 each and 40 Preliminary Medals at 2.00 each,19/10/2016,0000427443,480.00,Revenue,Boxing Awards Limited,132029
South Ribble Council,http://statistics.data.gov.uk/doc/local-authority/30UN,Property Services,Rep & Maint Premises,2020,"Annual contract 2016 / 2017 for care plan 3 at Kingsfold Community Centre, Kingsfold Drive, Penwortham",21/10/2016,0000427557,306.25,Revenue,BRITISH GAS SERVICES (COMMERCIAL) LTD,00016214
South Ribble Council,http://statistics.data.gov.uk/doc/local-authority/30UN,Property Services,Rep & Maint Premises,2020,"Annual contract 2016 / 2017 for care plan 3 at Kingsfold Community Centre, Kingsfold Drive, Penwortham",26/10/2016,0000427593,306.25,Revenue,BRITISH GAS SERVICES (COMMERCIAL) LTD,00016214
South Ribble Council,http://statistics.data.gov.uk/doc/local-authority/30UN,Homelessness,Contributions,4730,"Block booking ADDRESS REDACTED SRBC placements September 2016,1058.40 for 30 days",05/10/2016,0000427150,"1,058.40",Revenue,CHORLEY BOROUGH COUNCIL,00017352
South Ribble Council,http://statistics.data.gov.uk/doc/local-authority/30UN,Homelessness,Contractors Charges 5,5311,"ADDRESS REDACTED, SRBC placement 29/8/16-26/9/16 28days",07/10/2016,0000427159,987.96,Revenue,CHORLEY BOROUGH COUNCIL,00017352
South Ribble Council,http://statistics.data.gov.uk/doc/local-authority/30UN,Homelessness,Contractors Charges 5,5311,"ADDRESS REDACTED, SRBC placementNAME REDACTED 15 days a total of 529.20",07/10/2016,0000427211,529.20,Revenue,CHORLEY BOROUGH COUNCIL,00017352
South Ribble Council,http://statistics.data.gov.uk/doc/local-authority/30UN,Shared Financial Services,External Contractors Charges,4570,Provision of Shared Financial Services for 2016/17,14/10/2016,0000427409,"150,000.00",Revenue,CHORLEY BOROUGH COUNCIL,00017352
South Ribble Council,http://statistics.data.gov.uk/doc/local-authority/30UN,Homelessness,Contractors Charges 5,5311,"ADDRESS REDACTED, for 25 days stay between 09/09/2016 and 04/10/2016, total of 882.00 +VAT SRBC placement",19/10/2016,0000427433,882.00,Revenue,CHORLEY BOROUGH COUNCIL,00017352
South Ribble Council,http://statistics.data.gov.uk/doc/local-authority/30UN,Area 2 - Waste Transport/Eastern & Central Teams,External Contractors Charges,4570,SPEC REPAIR TO AD BLUE PUMP - PO13UUM - JFC7527 - GA,12/10/2016,0000427284,987.12,Revenue,CICELEY COMMERCIALS LTD,00059381
South Ribble Council,http://statistics.data.gov.uk/doc/local-authority/30UN,Area 2 - Waste Transport/Eastern & Central Teams,Materials General,4040,"1no Frame, PO13 UUM, JFC7432. (NAME REDACTED)",12/10/2016,0000427336,425.43,Revenue,CICELEY COMMERCIALS LTD,00059381
South Ribble Council,http://statistics.data.gov.uk/doc/local-authority/30UN,Area 2 - Waste Transport/Eastern & Central Teams,External Contractors Charges,4570,SPEC REPAIR - JFC7616 - MX04YNL - PD,21/10/2016,0000427513,294.97,Revenue,CICELEY COMMERCIALS LTD,00059381
South Ribble Council,http://statistics.data.gov.uk/doc/local-authority/30UN,HR & Communications,Training Expense-Course Fees,1402,BOOK ONE PLACE FOR NAME REDACTED ONTO THE ASSETT VALUATIONS SEMINAR IN MANCHESTER ,28/10/2016,0000427572,375.00,Revenue,CIPFA BUSINESS LTD,00017187
South Ribble Council,http://statistics.data.gov.uk/doc/local-authority/30UN,Homelessness,Contributions,4730,Sub regional management costs (NAME REDACTED time),12/10/2016,0000427364,585.43,Revenue,COMMUNITY GATEWAY HOUSING ASSOCIATION,00101682
South Ribble Council,http://statistics.data.gov.uk/doc/local-authority/30UN,HR & Communications,Balance Sheet,0030,CHILDCARE VOUCHERS OCTOBER 2016,21/10/2016,0000427236,"2,930.02",Revenue,COMPUTERSHARE VOUCHER SERVICES,00116499
South Ribble Council,http://statistics.data.gov.uk/doc/local-authority/30UN,Property Services,Rep & Maint Premises,2020,supply and fit a new door to the communications room on the ground floor. Use the same locking system. This is a fire door ,19/10/2016,0000427419,165.00,Revenue,COOPER BESPOKE JOINERY LTD,00104456
South Ribble Council,http://statistics.data.gov.uk/doc/local-authority/30UN,Property Services,Rep & Maint Premises,2020,materials,19/10/2016,0000427419,185.20,Revenue,COOPER BESPOKE JOINERY LTD,00104456
South Ribble Council,http://statistics.data.gov.uk/doc/local-authority/30UN,Property Services,Rep & Maint Premises,2024,Please supply a new double glazed unit. Hack out the broken unit and supply and fit the metal cage.,19/10/2016,0000427422,82.50,Revenue,COOPER BESPOKE JOINERY LTD,00104456
South Ribble Council,http://statistics.data.gov.uk/doc/local-authority/30UN,Property Services,Rep & Maint Premises,2024,"Knock off approximately 2 m x 3 m of render, clear from site. Supply extramet to the single skin wall Withy Grove Pavilion ",19/10/2016,0000427422,280.50,Revenue,COOPER BESPOKE JOINERY LTD,00104456
South Ribble Council,http://statistics.data.gov.uk/doc/local-authority/30UN,Property Services,Rep & Maint Premises,2024,materials line 1,19/10/2016,0000427422,38.00,Revenue,COOPER BESPOKE JOINERY LTD,00104456
South Ribble Council,http://statistics.data.gov.uk/doc/local-authority/30UN,Property Services,Rep & Maint Premises,2024,materials line 2,19/10/2016,0000427422,195.00,Revenue,COOPER BESPOKE JOINERY LTD,00104456
South Ribble Council,http://statistics.data.gov.uk/doc/local-authority/30UN,Property Services,Rep & Maint Premises,2020,"Please attend to 7 doors at Civic Centre, doors closers have dropped and are catching. Please speak to caretakers regarding",19/10/2016,0000427429,123.75,Revenue,COOPER BESPOKE JOINERY LTD,00104456
South Ribble Council,http://statistics.data.gov.uk/doc/local-authority/30UN,Property Services,Rep & Maint Premises,2020,materials,19/10/2016,0000427429,393.83,Revenue,COOPER BESPOKE JOINERY LTD,00104456
South Ribble Council,http://statistics.data.gov.uk/doc/local-authority/30UN,Property Services,Rep & Maint Premises,2020,Please make shelves to match colour for work in the resources room to the rear of gateway,19/10/2016,0000427454,123.75,Revenue,COOPER BESPOKE JOINERY LTD,00104456
South Ribble Council,http://statistics.data.gov.uk/doc/local-authority/30UN,Property Services,Rep & Maint Premises,2020,supply & fit new shelves in the store cupboard FCC at Moss Side depot. this is a recharge to NAME REDACTED at Moss Side,19/10/2016,0000427454,74.25,Revenue,COOPER BESPOKE JOINERY LTD,00104456
South Ribble Council,http://statistics.data.gov.uk/doc/local-authority/30UN,Property Services,Rep & Maint Premises,2020,"attend Moss Side depot compound, supply materials & labour to block up the partition, use wall boards to cover over doors",19/10/2016,0000427454,330.00,Revenue,COOPER BESPOKE JOINERY LTD,00104456
South Ribble Council,http://statistics.data.gov.uk/doc/local-authority/30UN,Property Services,Rep & Maint Premises,2020,materilas line 1,19/10/2016,0000427454,65.20,Revenue,COOPER BESPOKE JOINERY LTD,00104456
South Ribble Council,http://statistics.data.gov.uk/doc/local-authority/30UN,Property Services,Rep & Maint Premises,2020,materials line 2,19/10/2016,0000427454,37.40,Revenue,COOPER BESPOKE JOINERY LTD,00104456
South Ribble Council,http://statistics.data.gov.uk/doc/local-authority/30UN,Property Services,Rep & Maint Premises,2020,materials line 3,19/10/2016,0000427454,265.60,Revenue,COOPER BESPOKE JOINERY LTD,00104456
South Ribble Council,http://statistics.data.gov.uk/doc/local-authority/30UN,Healthy Communities,Other Misc,4851,The supply of Cricket Coaching for the Active Schools Coaching Programme Total Cost 3900,21/10/2016,0000427496,"3,900.00",Revenue,COUNTY CRICKET BOARD,00118112
South Ribble Council,http://statistics.data.gov.uk/doc/local-authority/30UN,Healthy Communities,Other Misc,4851,Delivery of cycling activity and bike maintenance - between September and January 2017,19/10/2016,0000427444,405.00,Revenue,NAME REDACTED,132006
South Ribble Council,http://statistics.data.gov.uk/doc/local-authority/30UN,Development Enterprise & Comm Mgnt,Advertising,4842,Provision digital enlargements framing of selected images from the Chambers collection for inclusion in the museum collection,28/10/2016,0000427674,300.00,Revenue,NAME REDACTED,132090
South Ribble Council,http://statistics.data.gov.uk/doc/local-authority/30UN,Customer Contact,Other Misc,485R,REFUND,14/10/2016,0000427020,535.00,Revenue,NAME REDACTED,132086
South Ribble Council,http://statistics.data.gov.uk/doc/local-authority/30UN,Area 2 - Waste Transport/Eastern & Central Teams,Materials General,4040,"1 brake chamber, 2 air pipe fittings, VN10 DKL, JFC7618. (NAME REDACTED)",14/10/2016,0000427415,482.13,Revenue,DENNIS EAGLE LTD,00019774
South Ribble Council,http://statistics.data.gov.uk/doc/local-authority/30UN,Information Services,Peripherals,4247,Telephone and Engineer onsite printer support contract for period 18/10/16 - 17/10/17,26/10/2016,0000427609,780.00,Revenue,DIGITAL ID LTD,130641
South Ribble Council,http://statistics.data.gov.uk/doc/local-authority/30UN,Information Services,Peripherals,4244,As per quote ref:  QT-158512-2 Fargo HDP5000 YMCK Ribbon - 500 print,28/10/2016,0000427650,169.98,Revenue,DIGITAL ID LTD,130641
South Ribble Council,http://statistics.data.gov.uk/doc/local-authority/30UN,Information Services,Peripherals,4244,Fargo HDP5000 Re-transfer Film - 1500 prints,28/10/2016,0000427650,122.00,Revenue,DIGITAL ID LTD,130641
South Ribble Council,http://statistics.data.gov.uk/doc/local-authority/30UN,Information Services,Peripherals,4244,Carriage,28/10/2016,0000427650,8.95,Revenue,DIGITAL ID LTD,130641
South Ribble Council,http://statistics.data.gov.uk/doc/local-authority/30UN,Information Services,Peripherals,4260,Peripherals,07/10/2016,0000427196,"2,230.21",Revenue,EE Ltd,131653
South Ribble Council,http://statistics.data.gov.uk/doc/local-authority/30UN,Information Services,Peripherals,4260,Peripherals,07/10/2016,0000427196,288.69,Revenue,EE Ltd,131653
South Ribble Council,http://statistics.data.gov.uk/doc/local-authority/30UN,Area 2 - Waste Transport/Eastern & Central Teams,External Contractors Charges,4570,RESIDUAL WASTE - SEPTEMBER 2016,14/10/2016,0000427416,"39,682.62",Revenue,FCC Environment Services (UK) Ltd,131612
South Ribble Council,http://statistics.data.gov.uk/doc/local-authority/30UN,Area 2 - Waste Transport/Eastern & Central Teams,External Contractors Charges,4570,DRY RECYCLABLE NON-TERRACED SEPTEMBER 2016,14/10/2016,0000427416,"40,624.15",Revenue,FCC Environment Services (UK) Ltd,131612
South Ribble Council,http://statistics.data.gov.uk/doc/local-authority/30UN,Area 2 - Waste Transport/Eastern & Central Teams,External Contractors Charges,4570,DRY RECYCLABLE TERRACED - SEPTEMBER 2016,14/10/2016,0000427416,"1,930.86",Revenue,FCC Environment Services (UK) Ltd,131612
South Ribble Council,http://statistics.data.gov.uk/doc/local-authority/30UN,Area 2 - Waste Transport/Eastern & Central Teams,External Contractors Charges,4570,ORGANIC WASTE NON TERRACED - SEPTEMBER 2016,14/10/2016,0000427416,"28,170.42",Revenue,FCC Environment Services (UK) Ltd,131612
South Ribble Council,http://statistics.data.gov.uk/doc/local-authority/30UN,Area 2 - Waste Transport/Eastern & Central Teams,External Contractors Charges,4570,SCHEDULE 2 PROPERTIES - SEPTEMBER 2016,14/10/2016,0000427416,"1,612.74",Revenue,FCC Environment Services (UK) Ltd,131612
South Ribble Council,http://statistics.data.gov.uk/doc/local-authority/30UN,Area 2 - Waste Transport/Eastern & Central Teams,External Contractors Charges,4570,COMMERCIAL WASTE - SEPTEMBER 2016,14/10/2016,0000427416,"6,312.47",Revenue,FCC Environment Services (UK) Ltd,131612
South Ribble Council,http://statistics.data.gov.uk/doc/local-authority/30UN,Area 2 - Waste Transport/Eastern & Central Teams,External Contractors Charges,4570,BULKY WASTE - SEPTEMBER 2016,14/10/2016,0000427416,873.13,Revenue,FCC Environment Services (UK) Ltd,131612
South Ribble Council,http://statistics.data.gov.uk/doc/local-authority/30UN,Area 2 - Waste Transport/Eastern & Central Teams,External Contractors Charges,4570,WEEE Collections SEPTEMBER 2016,14/10/2016,0000427416,326.68,Revenue,FCC Environment Services (UK) Ltd,131612
South Ribble Council,http://statistics.data.gov.uk/doc/local-authority/30UN,Area 2 - Waste Transport/Eastern & Central Teams,External Contractors Charges,4570,CLINICAL COLLECTIONS - SEPTEMBER 2016,14/10/2016,0000427416,556.37,Revenue,FCC Environment Services (UK) Ltd,131612
South Ribble Council,http://statistics.data.gov.uk/doc/local-authority/30UN,Area 2 - Waste Transport/Eastern & Central Teams,External Contractors Charges,4570,ADDITIONAL PROPERTIES SEPTEMBER 2016,14/10/2016,0000427416,694.19,Revenue,FCC Environment Services (UK) Ltd,131612
South Ribble Council,http://statistics.data.gov.uk/doc/local-authority/30UN,Area 2 - Waste Transport/Eastern & Central Teams,External Contractors Charges,4570,REPLACEMENT BINS -  SEPTEMBER 2016,14/10/2016,0000427416,"5,000.00",Revenue,FCC Environment Services (UK) Ltd,131612
South Ribble Council,http://statistics.data.gov.uk/doc/local-authority/30UN,Area 2 - Waste Transport/Eastern & Central Teams,Balance Sheet,0030,retention,14/10/2016,0000427416,"-2,502.91",Revenue,FCC Environment Services (UK) Ltd,131612
South Ribble Council,http://statistics.data.gov.uk/doc/local-authority/30UN,Area 2 - Waste Transport/Eastern & Central Teams,Balance Sheet,0030,retention,14/10/2016,0000427416,"-3,536.27",Revenue,FCC Environment Services (UK) Ltd,131612
South Ribble Council,http://statistics.data.gov.uk/doc/local-authority/30UN,Area 2 - Waste Transport/Eastern & Central Teams,External Contractors Charges,4570,Additional Clinical Waste Collections - September 2016,14/10/2016,0000427417,583.08,Revenue,FCC Environment Services (UK) Ltd,131612
South Ribble Council,http://statistics.data.gov.uk/doc/local-authority/30UN,Area 2 - Waste Transport/Eastern & Central Teams,Balance Sheet,0030,retention,14/10/2016,0000427417,-29.15,Revenue,FCC Environment Services (UK) Ltd,131612
South Ribble Council,http://statistics.data.gov.uk/doc/local-authority/30UN,Information Services,Peripherals,4248,Mobile Forms App - Annual licence renewal charge for the period 30/09/16 - 29/09/17,12/10/2016,0000425888,"5,250.00",Revenue,FIRMSTEP,00114022
South Ribble Council,http://statistics.data.gov.uk/doc/local-authority/30UN,Neighbourhood Admin & Support,Materials General,4040,PTCHMARKER Q2 - 15 LITRE,14/10/2016,0000427323,696.00,Revenue,Fleet Line Markers Limited,131942
South Ribble Council,http://statistics.data.gov.uk/doc/local-authority/30UN,Area 2 - Waste Transport/Eastern & Central Teams,Materials General,4040,2 SWITCHES - BIN 369 - GA,05/10/2016,0000427099,276.09,Revenue,H & J SERVICES LTD,00114446
South Ribble Council,http://statistics.data.gov.uk/doc/local-authority/30UN,Neighbourhood Admin & Support,Vehicle Running Costs,3134,17000ltrs Diesel  88.86p per ltr. YPO 618,14/10/2016,0000426925,"15,106.20",Revenue,Hall Fuels trading name of WFL (UK) Ltd,00116758
South Ribble Council,http://statistics.data.gov.uk/doc/local-authority/30UN,Neighbourhood Admin & Support,Vehicle Running Costs,3132,"12,000 LITRES DIESEL (@89.78 pence per litre)",07/10/2016,0000427241,"10,773.60",Revenue,Hall Fuels trading name of WFL (UK) Ltd,00116758
South Ribble Council,http://statistics.data.gov.uk/doc/local-authority/30UN,Neighbourhood Admin & Support,Vehicle Running Costs,3134,2500 LITRES GAS OIL (@44.87 pence per litre),07/10/2016,0000427242,"1,096.75",Revenue,Hall Fuels trading name of WFL (UK) Ltd,00116758
South Ribble Council,http://statistics.data.gov.uk/doc/local-authority/30UN,Neighbourhood Admin & Support,Vehicle Running Costs,3132,"17,000 LITRES DIESEL (@0.949 pence per litre)",28/10/2016,0000427689,"14,236.90",Revenue,Hall Fuels trading name of WFL (UK) Ltd,00116758
South Ribble Council,http://statistics.data.gov.uk/doc/local-authority/30UN,Neighbourhood Admin & Support,Vehicle Running Costs,3134,"2,000 litres GAS OIL (@0.5019 pence per litre)",28/10/2016,0000427690,"1,004.30",Revenue,Hall Fuels trading name of WFL (UK) Ltd,00116758
South Ribble Council,http://statistics.data.gov.uk/doc/local-authority/30UN,Healthy Communities,Other Misc,4851,2 Standing Desks  - 449.98 2 posture Cushions  - 69.98 Discount - 26.00 Total Cost  493.96,19/10/2016,0000427445,411.64,Revenue,Handsome Limited,132093
South Ribble Council,http://statistics.data.gov.uk/doc/local-authority/30UN,Information Services,Capital Expenditure,C234,"Migration of Database Standard Edition 2 from 20 NUPS ASFU to 1 PROC ASFU including 12 months support, as per quote ref",28/10/2016,0000427710,"6,552.15",Revenue,IDOX PLC,00104485
South Ribble Council,http://statistics.data.gov.uk/doc/local-authority/30UN,Information Services,Capital Expenditure,C234,"Professional Services (NSG) - 1 day onsite, as per quote",12/10/2016,0000426619,"1,476.00",Revenue,INSIGHT UK,00120744
South Ribble Council,http://statistics.data.gov.uk/doc/local-authority/30UN,Information Services,Peripherals,4248,"PowerVault TL2000 Tape Library, 2U, 24 Slot, 1 or 2 Drives at 6626.01 and Kit - Tape label, LTO7, 1-200 at 56.26",05/10/2016,0000427082,"6,682.27",Revenue,INSIGHT UK,00120744
South Ribble Council,http://statistics.data.gov.uk/doc/local-authority/30UN,Housing,Cap Grant- Improve Grants,C570,DFG WORKS AT ADDRESS REDACTED,21/10/2016,0000427571,"10,000.00",Revenue,J & D PRESCOTT BUILDERS,131919
South Ribble Council,http://statistics.data.gov.uk/doc/local-authority/30UN,Regeneration,Other Misc,4851,"South Ribble Community Awards �	CGPG14, H100, W145 x 18  �	CGSY3018, H180, W70 x 6  Logo Origination  	Delivery by 7th",07/10/2016,0000427220,449.58,Revenue,Jackson Corporate Trophies Ltd,132031
South Ribble Council,http://statistics.data.gov.uk/doc/local-authority/30UN,Healthy Communities,Other Misc,4851,Tennis Coaching in various primary schools;,07/10/2016,0000427157,"1,625.00",Revenue,NAME REDACTED,132083
South Ribble Council,http://statistics.data.gov.uk/doc/local-authority/30UN,Legal,Legal,4821,"Work undertaken by NAME REDACTED, Principal. 13th January 2016 to 30th March 2016 Advice in relation to an appeal by",21/10/2016,0000427552,950.00,Revenue,James Button & Co Solicitors,132024
South Ribble Council,http://statistics.data.gov.uk/doc/local-authority/30UN,Property Services,Rep & Maint Premises,2020,Annual Contract for 2016 - 2017 for the maintenance of the Trend BMS HVAC 4 x day visits (TBA) at the Civic Centre Offices,26/10/2016,0000427632,390.00,Revenue,JBC CONTROL SYSTEM,130816
South Ribble Council,http://statistics.data.gov.uk/doc/local-authority/30UN,Planning,Advertising,4841,Public notices for planning applications.,05/10/2016,0000427106,577.50,Revenue,JOHNSTON PUBLISHING (NORTH WEST),00011345
South Ribble Council,http://statistics.data.gov.uk/doc/local-authority/30UN,Legal,Other Misc,4851,PUBLIC NOTICE - FOOTPATH DIVERSION ORDER,14/10/2016,0000427140,577.50,Revenue,JOHNSTON PUBLISHING (NORTH WEST),00011345
South Ribble Council,http://statistics.data.gov.uk/doc/local-authority/30UN,Planning,Advertising,4841,Public notices for planning applications.,12/10/2016,0000427343,577.50,Revenue,JOHNSTON PUBLISHING (NORTH WEST),00011345
South Ribble Council,http://statistics.data.gov.uk/doc/local-authority/30UN,Planning,Advertising,4841,Public notices for planning applications.,19/10/2016,0000427453,551.25,Revenue,JOHNSTON PUBLISHING (NORTH WEST),00011345
South Ribble Council,http://statistics.data.gov.uk/doc/local-authority/30UN,Development Enterprise & Comm Mgnt,Other Misc,4851,Provision of Hockey Coaching as part of the �Active Schools� coaching programme  Total Cost 1300,28/10/2016,0000427691,625.00,Revenue,NAME REDACTED,131841
South Ribble Council,http://statistics.data.gov.uk/doc/local-authority/30UN,Homelessness,Contributions,4730,SRBC HOUSING ADVICE AND MEDIATION Q3 01/10/2016-31/12/2016,05/10/2016,0000427118,"5,000.00",Revenue,KEY UNLOCKING FUTURES LTD,00098601
South Ribble Council,http://statistics.data.gov.uk/doc/local-authority/30UN,Environmental Health,Materials General,4041,Poisons as per NAME REDACTED,28/10/2016,0000427570,289.09,Revenue,KILLGERM CHEMICALS LTD,00025894
South Ribble Council,http://statistics.data.gov.uk/doc/local-authority/30UN,Environmental Health,Materials General,4041,Poisons as per NAME REDACTED,28/10/2016,0000427599,282.61,Revenue,KILLGERM CHEMICALS LTD,00025894
South Ribble Council,http://statistics.data.gov.uk/doc/local-authority/30UN,Property Services,Rep & Maint Fixed Plant,2036,Annual PAT for 2016/2017 at Civic Centre,12/10/2016,0000427345,"1,049.60",Revenue,KITCHENER 2000 LIMITED,00114271
South Ribble Council,http://statistics.data.gov.uk/doc/local-authority/30UN,Housing,Cap Grant- Improve Grants,C570,DFG WORKS AT ADDRESS REDACTED,07/10/2016,0000427243,"13,190.00",Revenue,Kneen Developments,131997
South Ribble Council,http://statistics.data.gov.uk/doc/local-authority/30UN,Property Services,Rep & Maint Premises,2020,2016 / 2017 contract for water hygiene monitoring at Gregson Lane Pavilion,07/10/2016,0000427117,46.00,Revenue,KNOWSLEY BLD & ENVIRONMENTAL SERVICES,00072656
South Ribble Council,http://statistics.data.gov.uk/doc/local-authority/30UN,Property Services,Rep & Maint Premises,2020,2016 / 2017 contract for water hygiene monitoring at Hern Avenue Pavilion,07/10/2016,0000427117,46.00,Revenue,KNOWSLEY BLD & ENVIRONMENTAL SERVICES,00072656
South Ribble Council,http://statistics.data.gov.uk/doc/local-authority/30UN,Property Services,Rep & Maint Premises,2020,2016 / 2017 contract for water hygiene monitoring at Higher Walton Pavilion,07/10/2016,0000427117,46.00,Revenue,KNOWSLEY BLD & ENVIRONMENTAL SERVICES,00072656
South Ribble Council,http://statistics.data.gov.uk/doc/local-authority/30UN,Property Services,Rep & Maint Premises,2020,2016 / 2017 contract for water hygiene monitoring at Holme Pavilion,07/10/2016,0000427117,46.00,Revenue,KNOWSLEY BLD & ENVIRONMENTAL SERVICES,00072656
South Ribble Council,http://statistics.data.gov.uk/doc/local-authority/30UN,Property Services,Rep & Maint Premises,2020,2016 / 2017 contract for water hygiene monitoring at Hutton Pavilion,07/10/2016,0000427117,46.00,Revenue,KNOWSLEY BLD & ENVIRONMENTAL SERVICES,00072656
South Ribble Council,http://statistics.data.gov.uk/doc/local-authority/30UN,Property Services,Rep & Maint Premises,2020,2016 / 2017 contract for water hygiene monitoring at Kingsfold pavilion,07/10/2016,0000427117,53.50,Revenue,KNOWSLEY BLD & ENVIRONMENTAL SERVICES,00072656
South Ribble Council,http://statistics.data.gov.uk/doc/local-authority/30UN,Property Services,Rep & Maint Premises,2020,2016 / 2017 contract for water hygiene monitoring at sports pavilions Worden Park (formerly long pavilion),07/10/2016,0000427117,46.00,Revenue,KNOWSLEY BLD & ENVIRONMENTAL SERVICES,00072656
South Ribble Council,http://statistics.data.gov.uk/doc/local-authority/30UN,Property Services,Rep & Maint Premises,2020,2016 / 2017 contract for water hygiene monitoring at Moss Side Pavilion,07/10/2016,0000427117,53.50,Revenue,KNOWSLEY BLD & ENVIRONMENTAL SERVICES,00072656
South Ribble Council,http://statistics.data.gov.uk/doc/local-authority/30UN,Property Services,Rep & Maint Premises,2020,2016 / 2017 contract for water hygiene monitoring at Much Hoole Pavilion,07/10/2016,0000427117,46.00,Revenue,KNOWSLEY BLD & ENVIRONMENTAL SERVICES,00072656
South Ribble Council,http://statistics.data.gov.uk/doc/local-authority/30UN,Property Services,Rep & Maint Premises,2020,2016 / 2017 contract for water hygiene monitoring at Penwortham Holme,07/10/2016,0000427117,46.00,Revenue,KNOWSLEY BLD & ENVIRONMENTAL SERVICES,00072656
South Ribble Council,http://statistics.data.gov.uk/doc/local-authority/30UN,Property Services,Rep & Maint Premises,2020,2016 / 2017 contract for water hygiene monitoring at St Cuthbert`s Pavilion,07/10/2016,0000427117,46.00,Revenue,KNOWSLEY BLD & ENVIRONMENTAL SERVICES,00072656
South Ribble Council,http://statistics.data.gov.uk/doc/local-authority/30UN,Property Services,Rep & Maint Premises,2020,2016 / 2017 contract for water hygiene monitoring at Withy Grove Pavilion,07/10/2016,0000427117,53.50,Revenue,KNOWSLEY BLD & ENVIRONMENTAL SERVICES,00072656
South Ribble Council,http://statistics.data.gov.uk/doc/local-authority/30UN,Property Services,Rep & Maint Premises,2020,2016 / 2017 contract for water hygiene monitoring at Holland House Farm Pavilion,07/10/2016,0000427117,46.00,Revenue,KNOWSLEY BLD & ENVIRONMENTAL SERVICES,00072656
South Ribble Council,http://statistics.data.gov.uk/doc/local-authority/30UN,Property Services,Rep & Maint Premises,2020,"2016 / 2017 contract for water hygiene monitoring at The Derby Wing, Worden Park",07/10/2016,0000427117,43.50,Revenue,KNOWSLEY BLD & ENVIRONMENTAL SERVICES,00072656
South Ribble Council,http://statistics.data.gov.uk/doc/local-authority/30UN,Property Services,Rep & Maint Premises,2020,2016 / 2017 contract for water hygiene monitoring at Carr Street Community Centre,07/10/2016,0000427117,43.50,Revenue,KNOWSLEY BLD & ENVIRONMENTAL SERVICES,00072656
South Ribble Council,http://statistics.data.gov.uk/doc/local-authority/30UN,Property Services,Rep & Maint Premises,2020,2016 / 2017 contract for water hygiene monitoring at Kingsfold Community Centre,07/10/2016,0000427117,43.50,Revenue,KNOWSLEY BLD & ENVIRONMENTAL SERVICES,00072656
South Ribble Council,http://statistics.data.gov.uk/doc/local-authority/30UN,Property Services,Rep & Maint Premises,2020,2016 / 2017 contract for water hygiene monitoring at Higher Walton Community Centre,07/10/2016,0000427117,43.50,Revenue,KNOWSLEY BLD & ENVIRONMENTAL SERVICES,00072656
South Ribble Council,http://statistics.data.gov.uk/doc/local-authority/30UN,Property Services,Rep & Maint Premises,2020,2016 / 2017 contract for water hygiene monitoring at Moss Side Community Centre,07/10/2016,0000427117,43.50,Revenue,KNOWSLEY BLD & ENVIRONMENTAL SERVICES,00072656
South Ribble Council,http://statistics.data.gov.uk/doc/local-authority/30UN,Property Services,Rep & Maint Premises,2020,2016 / 2017 contract for water hygiene monitoring at Worden Arts & Craft Centre,07/10/2016,0000427117,58.50,Revenue,KNOWSLEY BLD & ENVIRONMENTAL SERVICES,00072656
South Ribble Council,http://statistics.data.gov.uk/doc/local-authority/30UN,Property Services,Rep & Maint Premises,2020,2016 /2017 contract for water hygiene monitoring at Leyland Market,07/10/2016,0000427117,36.00,Revenue,KNOWSLEY BLD & ENVIRONMENTAL SERVICES,00072656
South Ribble Council,http://statistics.data.gov.uk/doc/local-authority/30UN,Property Services,Rep & Maint Premises,2020,2016 / 2017  contract for water hygiene monitoring at Hurst Grange Park,07/10/2016,0000427117,43.50,Revenue,KNOWSLEY BLD & ENVIRONMENTAL SERVICES,00072656
South Ribble Council,http://statistics.data.gov.uk/doc/local-authority/30UN,Property Services,Rep & Maint Premises,2020,"2016 / 2017 contract for water hygiene monitoring at Crossroads toilets, Worden Park",07/10/2016,0000427117,23.00,Revenue,KNOWSLEY BLD & ENVIRONMENTAL SERVICES,00072656
South Ribble Council,http://statistics.data.gov.uk/doc/local-authority/30UN,Property Services,Rep & Maint Premises,2020,2016 / 2017 contract for water hygiene monitoring at Hope Terrace Public toilets,07/10/2016,0000427117,23.00,Revenue,KNOWSLEY BLD & ENVIRONMENTAL SERVICES,00072656
South Ribble Council,http://statistics.data.gov.uk/doc/local-authority/30UN,Property Services,Rep & Maint Premises,2020,2016 / 2017 contract for water hygiene monitoring at Longton Brick Croft,07/10/2016,0000427117,26.00,Revenue,KNOWSLEY BLD & ENVIRONMENTAL SERVICES,00072656
South Ribble Council,http://statistics.data.gov.uk/doc/local-authority/30UN,Property Services,Rep & Maint Premises,2020,"2016 / 2017 contract for water hygiene monitoring at Playground toilets, Worden Park",07/10/2016,0000427117,23.00,Revenue,KNOWSLEY BLD & ENVIRONMENTAL SERVICES,00072656
South Ribble Council,http://statistics.data.gov.uk/doc/local-authority/30UN,Property Services,Rep & Maint Premises,2020,2016 / 2017 contract for water hygiene monitoring at SR Museum & Exhibition Centre,07/10/2016,0000427117,26.00,Revenue,KNOWSLEY BLD & ENVIRONMENTAL SERVICES,00072656
South Ribble Council,http://statistics.data.gov.uk/doc/local-authority/30UN,Property Services,Rep & Maint Premises,2020,2016 / 2017 contract for water hygiene monitoring at Withy Grove public toilets,07/10/2016,0000427117,23.00,Revenue,KNOWSLEY BLD & ENVIRONMENTAL SERVICES,00072656
South Ribble Council,http://statistics.data.gov.uk/doc/local-authority/30UN,Property Services,Rep & Maint Premises,2020,"2016 / 2017 contract for water hygiene monitoring at the Civic Centre, Leyland",07/10/2016,0000427117,184.50,Revenue,KNOWSLEY BLD & ENVIRONMENTAL SERVICES,00072656
South Ribble Council,http://statistics.data.gov.uk/doc/local-authority/30UN,Property Services,Rep & Maint Premises,2020,2016 / 2017 contract for water hygiene monitoring at Moss Side Depot,07/10/2016,0000427117,112.50,Revenue,KNOWSLEY BLD & ENVIRONMENTAL SERVICES,00072656
South Ribble Council,http://statistics.data.gov.uk/doc/local-authority/30UN,Property Services,Rep & Maint Premises,2020,2016 / 2017 contract for water hygiene monitoring at Longton Pavilion,07/10/2016,0000427117,46.00,Revenue,KNOWSLEY BLD & ENVIRONMENTAL SERVICES,00072656
South Ribble Council,http://statistics.data.gov.uk/doc/local-authority/30UN,Property Services,Rep & Maint Premises,2020,QTR1,19/10/2016,0000427295,"1,463.00",Revenue,KNOWSLEY BLD & ENVIRONMENTAL SERVICES,00072656
South Ribble Council,http://statistics.data.gov.uk/doc/local-authority/30UN,Homelessness,Contributions,4730,Deposit 750 and 26 weeks rent paid in advance for ADDRESS REDACTED. Landlord incentive behalf of NAMES REDACTED,19/10/2016,0000427447,"4,938.60",Revenue,LANCASHIRE LETTINGS,130876
South Ribble Council,http://statistics.data.gov.uk/doc/local-authority/30UN,Regeneration,Consultancy Fees,4541,Undertake Conditions Survey of Leisure Facilities and develop a 25 year planned maintenance programme.,28/10/2016,0000427425,"15,840.00",Revenue,Lancaster Maloney Limited,131914
South Ribble Council,http://statistics.data.gov.uk/doc/local-authority/30UN,Housing,Cap Grant- Improve Grants,C570,SUPPLY AND INSTALL STAIRLIFT AT ADDRESS REDACTED AS PER YOUR QUOTE OF -2608.00,05/10/2016,0000427079,"2,608.00",Revenue,LANCS COUNTY COUNCIL,00041645
South Ribble Council,http://statistics.data.gov.uk/doc/local-authority/30UN,Development Enterprise & Comm Mgnt,Balance Sheet,0030,"Payment of CIL received to the City Deal Fund (site ref H2b)FAO: NAME REDACTED",07/10/2016,0000427111,"241,724.06",Revenue,LANCS COUNTY COUNCIL,00041645
South Ribble Council,http://statistics.data.gov.uk/doc/local-authority/30UN,Legal,Other Local Authorities,4530,LAND CHARGES - AUGUST 2016,05/10/2016,0000427112,"1,004.50",Revenue,LANCS COUNTY COUNCIL,00041645
South Ribble Council,http://statistics.data.gov.uk/doc/local-authority/30UN,Shared Assurance Services,Contractors Charges 5,5413,Provision of Internal Audit Services 45 Days @ 260 per day,12/10/2016,0000427207,"4,160.00",Revenue,LANCS COUNTY COUNCIL,00041645
South Ribble Council,http://statistics.data.gov.uk/doc/local-authority/30UN,Housing,Cap Grant- Improve Grants,C570,SUPPLY AND INSTALL STAIRLIFT AT ADDRESS REDACTED AS PER YOUR QUOTE OF -3602.00,26/10/2016,0000427621,"3,602.00",Revenue,LANCS COUNTY COUNCIL,00041645
South Ribble Council,http://statistics.data.gov.uk/doc/local-authority/30UN,Housing,Cap Grant- Improve Grants,C570,SUPPLY AND INSTALL STAIRLIFT AT ADDRESS REDACTED AS PER YOUR QUOTE OF -4809.00,26/10/2016,0000427622,"4,809.00",Revenue,LANCS COUNTY COUNCIL,00041645
South Ribble Council,http://statistics.data.gov.uk/doc/local-authority/30UN,Housing,Cap Grant- Improve Grants,C570,SUPPLY AND INSTALL STAIRLIFT A ADDRESS REDACTED AS PER YOUR QUOTE OF -2469.00,26/10/2016,0000427623,"2,469.00",Revenue,LANCS COUNTY COUNCIL,00041645
South Ribble Council,http://statistics.data.gov.uk/doc/local-authority/30UN,Homelessness,Contributions,4730,LANDLORD INCENTIVE SCHEME NAME AND ADDRESS REDACTED 500 bond and 500 rent in advance total 1000,03/10/2016,0000427128,"1,000.00",Revenue,Lawrence Rooney Lettings LTD,132087
South Ribble Council,http://statistics.data.gov.uk/doc/local-authority/30UN,Area 2 - Waste Transport/Eastern & Central Teams,External Contractors Charges,4570,SPEC REPAIR - PJ04XGA - JFC7418 - PD,21/10/2016,0000427565,640.39,Revenue,LEYLAND GARAGE SERVICE CENTRE LTD,00064541
South Ribble Council,http://statistics.data.gov.uk/doc/local-authority/30UN,Regeneration,Other Misc,4851,road closure,19/10/2016,0000427375,300.00,Revenue,LOSTOCK HALL ROYAL BRITISH LEGION BRANCH,131308
South Ribble Council,http://statistics.data.gov.uk/doc/local-authority/30UN,Regeneration,Other Misc,4851,"Better Together Lanyards x 100 270.50 Event Table Cloths x 2 Better Together  214.30 Clips 2 Pairs 10.50 Delivery 37",14/10/2016,0000427403,557.30,Revenue,LOVE TO BRAND LTD,130839
South Ribble Council,http://statistics.data.gov.uk/doc/local-authority/30UN,Regeneration,Other Misc,4851,Better Together Lanyards x 100 270.50 Event Table Cloths x 2 Better Together  214.30 Clips 2 Pairs 10.50 Delivery 37 ,14/10/2016,0000427403,224.80,Revenue,LOVE TO BRAND LTD,130839
South Ribble Council,http://statistics.data.gov.uk/doc/local-authority/30UN,Regeneration,Other Misc,4851,"Better Together Lanyards x 100 270.50 Event Table Cloths x 2 Better Together  214.30 Clips 2 Pairs 10.50 Delivery 37 ",14/10/2016,0000427403,132.40,Revenue,LOVE TO BRAND LTD,130839
South Ribble Council,http://statistics.data.gov.uk/doc/local-authority/30UN,Regeneration,Other Misc,4851,"Better Together Lanyards x 100 270.50 Event Table Cloths x 2 Better Together  214.30 Clips 2 Pairs 10.50 Delivery 37 ",14/10/2016,0000427403,132.40,Revenue,LOVE TO BRAND LTD,130839
South Ribble Council,http://statistics.data.gov.uk/doc/local-authority/30UN,Area 3 - Parks/Leyland East West,Grounds Maint Cntrctrs Chgs,4657,PLEASE SUPPLY HARDWOOD PLAY CHIPS TO -ADDRESS REDACTED - 165m3 DELIVERED ON 2 WALKING FLOOR,19/10/2016,0000427261,"1,140.75",Revenue,M & B Surfaces,132021
South Ribble Council,http://statistics.data.gov.uk/doc/local-authority/30UN,Area 3 - Parks/Leyland East West,Grounds Maint Cntrctrs Chgs,4657,PLEASE SUPPLY HARDWOOD PLAY CHIPS TO -ADDRESS REDACTED - 165m3 DELIVERED ON 2 WALKING FLOOR,19/10/2016,0000427262,"1,140.75",Revenue,M & B Surfaces,132021
South Ribble Council,http://statistics.data.gov.uk/doc/local-authority/30UN,Area 3 - Parks/Leyland East West,Grounds Maint Cntrctrs Chgs,4657,PLEASE SUPPLY HARDWOOD PLAY CHIPS TO -ADDRESS REDACTED - 165m3 DELIVERED ON 2 WALKING FLOOR,19/10/2016,0000427263,"1,140.75",Revenue,M & B Surfaces,132021
South Ribble Council,http://statistics.data.gov.uk/doc/local-authority/30UN,Area 3 - Parks/Leyland East West,Grounds Maint Cntrctrs Chgs,4657,PLEASE SUPPLY HARDWOOD PLAY CHIPS TO -ADDRESS REDACTED - 165m3 DELIVERED ON 2 WALKING FLOOR,19/10/2016,0000427264,"1,140.75",Revenue,M & B Surfaces,132021
South Ribble Council,http://statistics.data.gov.uk/doc/local-authority/30UN,Area 3 - Parks/Leyland East West,Grounds Maint Cntrctrs Chgs,4657,ADDRESS REDACTED- 155m3 DELIVERED ON 4 LOADS ON 8 WHEELER RIDGE WEHICLE,19/10/2016,0000427265,"2,041.88",Revenue,M & B Surfaces,132021
South Ribble Council,http://statistics.data.gov.uk/doc/local-authority/30UN,Area 3 - Parks/Leyland East West,Grounds Maint Cntrctrs Chgs,4657,ADDRESS REDACTED - 155m3 DELIVERED ON 4 LOADS ON 8 WHEELER RIDGE WEHICLE,19/10/2016,0000427266,"2,041.88",Revenue,M & B Surfaces,132021
South Ribble Council,http://statistics.data.gov.uk/doc/local-authority/30UN,Area 2 - Waste Transport/Eastern & Central Teams,External Contractors Charges,4570,SPEC REPAIR - VN10 DKL - JFC7496 - GA,14/10/2016,0000427142,"1,261.78",Revenue,M WILSON COMMERCIALS LIMITED,130533
South Ribble Council,http://statistics.data.gov.uk/doc/local-authority/30UN,Regeneration,Other Misc,4851,"Street Checks Healthy Steps Proposal  - Logo Design x 2 variations - Style design and creative writing for stet stalls ",07/10/2016,0000427219,750.00,Revenue,Moocreations Ltd,132038
South Ribble Council,http://statistics.data.gov.uk/doc/local-authority/30UN,Regeneration,Other Misc,4851,"Street Checks Healthy Steps Proposal   - Logo Design x 2 variations - Style design and creative writing for street stall",07/10/2016,0000427219,420.00,Revenue,Moocreations Ltd,132038
South Ribble Council,http://statistics.data.gov.uk/doc/local-authority/30UN,Area 1 - Penwortham Western Parishes,Professional Fees,4521,PROVISION OF STRAY DOG SERVICE - TO COVER SEPTEMBER 2016,14/10/2016,0000427305,326.74,Revenue,MORNINGSIDE KENNELS,00067755
South Ribble Council,http://statistics.data.gov.uk/doc/local-authority/30UN,Area 2 - Waste Transport/Eastern & Central Teams,External Contractors Charges,4570,SPEC REPAIR - MV12SWN - JFC 7387,21/10/2016,0000427514,55.50,Revenue,MUNICIPAL VEHICLE INSPECTION SERVICES LT,00096645
South Ribble Council,http://statistics.data.gov.uk/doc/local-authority/30UN,Area 2 - Waste Transport/Eastern & Central Teams,External Contractors Charges,4570,SPEC REPAIR - PN58WFZ - JFC 7384,21/10/2016,0000427514,55.50,Revenue,MUNICIPAL VEHICLE INSPECTION SERVICES LT,00096645
South Ribble Council,http://statistics.data.gov.uk/doc/local-authority/30UN,Area 2 - Waste Transport/Eastern & Central Teams,External Contractors Charges,4570,SPEC REPAIR - MH04GSZ - JFC 7388,21/10/2016,0000427514,55.50,Revenue,MUNICIPAL VEHICLE INSPECTION SERVICES LT,00096645
South Ribble Council,http://statistics.data.gov.uk/doc/local-authority/30UN,Area 2 - Waste Transport/Eastern & Central Teams,External Contractors Charges,4570,SPEC REPAIR - MV12SUF - JFC 7386,21/10/2016,0000427514,55.50,Revenue,MUNICIPAL VEHICLE INSPECTION SERVICES LT,00096645
South Ribble Council,http://statistics.data.gov.uk/doc/local-authority/30UN,Area 2 - Waste Transport/Eastern & Central Teams,External Contractors Charges,4570,SPEC REPAIR - MV12SUA - JFC 7385,21/10/2016,0000427514,55.50,Revenue,MUNICIPAL VEHICLE INSPECTION SERVICES LT,00096645
South Ribble Council,http://statistics.data.gov.uk/doc/local-authority/30UN,Area 2 - Waste Transport/Eastern & Central Teams,External Contractors Charges,4570,FLT01,21/10/2016,0000427514,55.50,Revenue,MUNICIPAL VEHICLE INSPECTION SERVICES LT,00096645
South Ribble Council,http://statistics.data.gov.uk/doc/local-authority/30UN,Housing,Cap Grant- Improve Grants,C570,DFG WORKS AT ADDRESS REDACTED,14/10/2016,0000427368,"20,000.00",Revenue,MYLES RONAN,131996
South Ribble Council,http://statistics.data.gov.uk/doc/local-authority/30UN,Information Services,Peripherals,4247,"Samsung Galaxy Tab S2 9.7 SM-T819N 32GB 3G Gold, as per quote ref. 164022-1",19/10/2016,0000427421,781.70,Revenue,MYPREMIER LTD,130091
South Ribble Council,http://statistics.data.gov.uk/doc/local-authority/30UN,Information Services,Peripherals,4247,carriage,19/10/2016,0000427421,10.00,Revenue,MYPREMIER LTD,130091
South Ribble Council,http://statistics.data.gov.uk/doc/local-authority/30UN,Area 3 - Parks/Leyland East West,Materials General,4046,4 x 1000 English Bluebell Bulbs @ 149.75 per 1000,14/10/2016,0000427319,599.00,Revenue,Naturescape,132077
South Ribble Council,http://statistics.data.gov.uk/doc/local-authority/30UN,Area 3 - Parks/Leyland East West,Materials General,4040,"10,000 English Bluebell Bulbs @ 149.75 per 1000 Required no later than 31st October 2016",26/10/2016,0000427567,"1,247.92",Revenue,Naturescape,132077
South Ribble Council,http://statistics.data.gov.uk/doc/local-authority/30UN,Area 2 - Waste Transport/Eastern & Central Teams,External Contractors Charges,4570,STEAM CLEAN - VO65KPX - JFC7301 - PD,14/10/2016,0000427200,75.00,Revenue,NAYLORS TRANSPORT (LEYLAND) ltd,00114828
South Ribble Council,http://statistics.data.gov.uk/doc/local-authority/30UN,Area 2 - Waste Transport/Eastern & Central Teams,External Contractors Charges,4570,STEAM CLEAN - VO65KPY - JFC7303 - PD,14/10/2016,0000427200,65.00,Revenue,NAYLORS TRANSPORT (LEYLAND) ltd,00114828
South Ribble Council,http://statistics.data.gov.uk/doc/local-authority/30UN,Area 2 - Waste Transport/Eastern & Central Teams,External Contractors Charges,4570,STEAM CLEAN - VK09AHJ - JFC7304 - PD,14/10/2016,0000427200,65.00,Revenue,NAYLORS TRANSPORT (LEYLAND) ltd,00114828
South Ribble Council,http://statistics.data.gov.uk/doc/local-authority/30UN,Area 2 - Waste Transport/Eastern & Central Teams,External Contractors Charges,4570,STEAM CLEAN - VN10DKL - JFC7305 - PD,14/10/2016,0000427200,65.00,Revenue,NAYLORS TRANSPORT (LEYLAND) ltd,00114828
South Ribble Council,http://statistics.data.gov.uk/doc/local-authority/30UN,Area 2 - Waste Transport/Eastern & Central Teams,External Contractors Charges,4570,STEAM CLEAN - PJ62UCH - JFC7306 - PD,14/10/2016,0000427200,65.00,Revenue,NAYLORS TRANSPORT (LEYLAND) ltd,00114828
South Ribble Council,http://statistics.data.gov.uk/doc/local-authority/30UN,Area 2 - Waste Transport/Eastern & Central Teams,External Contractors Charges,4570,STEAM CLEAN - PJ62UCG - JFC7302 - PD,14/10/2016,0000427200,65.00,Revenue,NAYLORS TRANSPORT (LEYLAND) ltd,00114828
South Ribble Council,http://statistics.data.gov.uk/doc/local-authority/30UN,Area 2 - Waste Transport/Eastern & Central Teams,External Contractors Charges,4570,STEAM CLEAN - VO65KRF - JFC7307 - PD,14/10/2016,0000427200,65.00,Revenue,NAYLORS TRANSPORT (LEYLAND) ltd,00114828
South Ribble Council,http://statistics.data.gov.uk/doc/local-authority/30UN,Area 2 - Waste Transport/Eastern & Central Teams,External Contractors Charges,4570,STEAM CLEAN - PJ62UCL - JFC7308 - PD,14/10/2016,0000427200,65.00,Revenue,NAYLORS TRANSPORT (LEYLAND) ltd,00114828
South Ribble Council,http://statistics.data.gov.uk/doc/local-authority/30UN,Area 2 - Waste Transport/Eastern & Central Teams,External Contractors Charges,4570,STEAM CLEAN - VO65KRD - JFC7309 - PD,14/10/2016,0000427200,65.00,Revenue,NAYLORS TRANSPORT (LEYLAND) ltd,00114828
South Ribble Council,http://statistics.data.gov.uk/doc/local-authority/30UN,Area 2 - Waste Transport/Eastern & Central Teams,External Contractors Charges,4570,STEAM CLEAN - VN10DKV - JFC7310 - PD,14/10/2016,0000427200,65.00,Revenue,NAYLORS TRANSPORT (LEYLAND) ltd,00114828
South Ribble Council,http://statistics.data.gov.uk/doc/local-authority/30UN,Property Services,Client Internal Charges,4590,"2016 / 2017 - Weekly waste removal at Leyland Market, @ 79.49 plus ad hoc pick ups as required.",14/10/2016,0000427332,527.45,Revenue,NEALES WASTE MANAGEMENT,130129
South Ribble Council,http://statistics.data.gov.uk/doc/local-authority/30UN,Homelessness,Contractors Charges 5,5311,first 4 weeks rent as agreed NAME REDACTED temporary accommodation at  ADDRESS REDACTED,07/10/2016,0000427260,403.80,Revenue,NEW PROGRESS HOUSING ASSOC ref:DNSOU001,00030135
South Ribble Council,http://statistics.data.gov.uk/doc/local-authority/30UN,HR & Communications,Peripherals,4242,EXTENSION OF THE JOB EVALUATION AGREEMENT FOR A FURTHER 36 MONTHS,19/10/2016,0000427485,"3,000.00",Revenue,NORTHGATE ARINSO UK LTD,00094414
South Ribble Council,http://statistics.data.gov.uk/doc/local-authority/30UN,Area 1 - Penwortham Western Parishes,Professional Fees,4514,DEPLOYMENT OF OFFICERS SEPTEMBER 2016,07/10/2016,0000427271,"1,762.07",Revenue,NSL LTD,00116868
South Ribble Council,http://statistics.data.gov.uk/doc/local-authority/30UN,Area 1 - Penwortham Western Parishes,Other Misc,4855,CASH COLLECTION & RINGO TRANSACTIONS SEPTEMBER 2016,07/10/2016,0000427271,296.02,Revenue,NSL LTD,00116868
South Ribble Council,http://statistics.data.gov.uk/doc/local-authority/30UN,Information Services,Processing-Internal,4212,INDENTIKEY Authentication Server Licence/Gold Edition - Maintenance,07/10/2016,0000427169,"2,531.10",Revenue,NVIRON LTD,00028781
South Ribble Council,http://statistics.data.gov.uk/doc/local-authority/30UN,Information Services,Processing-Internal,4212,DPX Regeneration FEE/DPX File,07/10/2016,0000427214,333.00,Revenue,NVIRON LTD,00028781
South Ribble Council,http://statistics.data.gov.uk/doc/local-authority/30UN,Information Services,Peripherals,4245,"VMware renewal for 1 year 09/11/16 - 08/11/17, as per quote",19/10/2016,0000427436,"6,438.01",Revenue,NVIRON LTD,00028781
South Ribble Council,http://statistics.data.gov.uk/doc/local-authority/30UN,Information Services,Peripherals,4245,1yr DNS Hosting for 4 Domain Names for period 13/11/16 - 12/11/17,28/10/2016,0000427699,852.64,Revenue,NVIRON LTD,00028781
South Ribble Council,http://statistics.data.gov.uk/doc/local-authority/30UN,Shared Assurance Services,Professional Fees,4510,Property inspections re flood grants: 8 Residential Properties at 294 1 Business at 294 VAT 529.20,12/10/2016,0000427102,"2,646.00",Revenue,Pell Frischmann,132016
South Ribble Council,http://statistics.data.gov.uk/doc/local-authority/30UN,Shared Assurance Services,Professional Fees,4510,Flood Grant surveys undertaken: 3 Property surveys @ 294 = 882 VAT = 176.40,14/10/2016,0000427394,882.00,Revenue,Pell Frischmann,132016
South Ribble Council,http://statistics.data.gov.uk/doc/local-authority/30UN,Information Services,Peripherals,4244,MC55XX yellow print unit code A03105H,14/10/2016,0000427395,131.40,Revenue,PENKETHS LTD T/A THOMAS COMPUTER SUPPLIE,00037057
South Ribble Council,http://statistics.data.gov.uk/doc/local-authority/30UN,Information Services,Peripherals,4244,MC 55XX magenta print unit code A0310AH,14/10/2016,0000427395,132.60,Revenue,PENKETHS LTD T/A THOMAS COMPUTER SUPPLIE,00037057
South Ribble Council,http://statistics.data.gov.uk/doc/local-authority/30UN,Information Services,Peripherals,4244,MC 55XX cyan print unit code A0310GH,14/10/2016,0000427395,132.60,Revenue,PENKETHS LTD T/A THOMAS COMPUTER SUPPLIE,00037057
South Ribble Council,http://statistics.data.gov.uk/doc/local-authority/30UN,Information Services,Peripherals,4244,MC 55XX black print unit code A03100H,14/10/2016,0000427395,131.40,Revenue,PENKETHS LTD T/A THOMAS COMPUTER SUPPLIE,00037057
South Ribble Council,http://statistics.data.gov.uk/doc/local-authority/30UN,Healthy Communities,Other Misc,4851,First Payment form Event Management fee for 2017 Sports Award,12/10/2016,0000427257,"1,500.00",Revenue,Pennine Events,131103
South Ribble Council,http://statistics.data.gov.uk/doc/local-authority/30UN,Healthy Communities,Sports Dev Expenses,4890,Part payment for the sponsorship services for south ribbl3e sports award 2017,12/10/2016,0000427258,750.00,Revenue,Pennine Events,131103
South Ribble Council,http://statistics.data.gov.uk/doc/local-authority/30UN,Property Services,External Contractors Charges,4575,To supply hot Committee teas & sweet @ 6.20 per head for 60 on 5th October 2016 @ 16.30 to SRBC,26/10/2016,0000427369,372.00,Revenue,Penningtons Catering Ltd,131684
South Ribble Council,http://statistics.data.gov.uk/doc/local-authority/30UN,Environmental Health,Professional Fees,4522,gov fee,21/10/2016,0000427481,93.31,Revenue,Personnel Checks,131483
South Ribble Council,http://statistics.data.gov.uk/doc/local-authority/30UN,Environmental Health,Professional Fees,4522,admin fee,21/10/2016,0000427481,308.00,Revenue,Personnel Checks,131483
South Ribble Council,http://statistics.data.gov.uk/doc/local-authority/30UN,Property Services,Operational Furniture & Equip,4012,2016 / 2017 contract for the provision of sanitary services at the Civic Centre,05/10/2016,0000427093,915.03,Revenue,PHS GROUP PLC,00031309
South Ribble Council,http://statistics.data.gov.uk/doc/local-authority/30UN,Property Services,Operational Furniture & Equip,4012,"2016 / 2017 contract for the provision of sanitary services at Moss Side Depot, Bison Place, Leyland",05/10/2016,0000427095,405.60,Revenue,PHS GROUP PLC,00031309
South Ribble Council,http://statistics.data.gov.uk/doc/local-authority/30UN,Information Services,Stationery,4133,"75,000 sheets Evolution Everyday A4 80gm 30,000 sheets Evolution Business A4 90gm",07/10/2016,0000427107,511.50,Revenue,PREMIER PAPER GROUP LTD,00022606
South Ribble Council,http://statistics.data.gov.uk/doc/local-authority/30UN,Information Services,Stationery,4133,"5000 sheets Evolution Everyday A3 80gm 40,000 sheets Evolution Everyday A4 80gm 1000 sheets Premier Elements Fire White",26/10/2016,0000427597,258.45,Revenue,PREMIER PAPER GROUP LTD,00022606
South Ribble Council,http://statistics.data.gov.uk/doc/local-authority/30UN,Area 2 - Waste Transport/Eastern & Central Teams,External Contractors Charges,4570,TR167 - TYRE REPAIRS - GA,07/10/2016,0000427145,813.72,Revenue,PRESTON TYRE SPECIALISTS,00109516
South Ribble Council,http://statistics.data.gov.uk/doc/local-authority/30UN,Area 2 - Waste Transport/Eastern & Central Teams,Materials General,4040,TR 168,19/10/2016,0000427471,731.86,Revenue,PRESTON TYRE SPECIALISTS,00109516
South Ribble Council,http://statistics.data.gov.uk/doc/local-authority/30UN,Democratic Services,Printing,4127,A6 Calling Cards - P.I Ref-SG03/068127/,19/10/2016,0000427494,797.00,Revenue,PRINT IMAGE NETWORK LTD,00089199
South Ribble Council,http://statistics.data.gov.uk/doc/local-authority/30UN,Development Enterprise & Comm Mgnt,Other Misc,485K,Sitefinity Licence renewal for one year from 1st October 2016 at $599,12/10/2016,0000427370,462.85,Revenue,PROTEAN SYSTEMS LIMITED,130003
South Ribble Council,http://statistics.data.gov.uk/doc/local-authority/30UN,HR & Communications,Training Expense-Course Fees,1403,NAME REDACTED QUALIFICATION - PRINCE II ELEARNING DATES TO BE CONFIRMED,28/10/2016,0000427598,750.00,Revenue,QA LIMITED,00113638
South Ribble Council,http://statistics.data.gov.uk/doc/local-authority/30UN,Property Services,Rep & Maint Premises,2020,"Please clear out the road grids and collect debris at NAME REDACTED, photographic evidence before and after is required,.",12/10/2016,0000427255,375.00,Revenue,RED ROSE BUILDING MAINTENANCE,00085410
South Ribble Council,http://statistics.data.gov.uk/doc/local-authority/30UN,Property Services,Rep & Maint Premises,2020,Please attend Leyland leisure centre (boiler house)to lift and clear the 4 x Arco channels.,19/10/2016,0000427348,260.00,Revenue,RED ROSE BUILDING MAINTENANCE,00085410
South Ribble Council,http://statistics.data.gov.uk/doc/local-authority/30UN,Property Services,Rep & Maint Premises,2020,Penwortham Holme Please attend 14.10.2016 at 8 am foe delivery of toilet block and connect to water and sewerage system as,28/10/2016,0000427559,301.00,Revenue,RED ROSE BUILDING MAINTENANCE,00085410
South Ribble Council,http://statistics.data.gov.uk/doc/local-authority/30UN,Area 3 - Parks/Leyland East West,Grounds Maint Cntrctrs Chgs,4657,ADDITION WORK AT ADDRESS REDACTED AS PER QUOTE DATED 19/08/16,07/10/2016,0000427267,960.00,Revenue,Reid Construction & Civil Engineering Ltd,131544
South Ribble Council,http://statistics.data.gov.uk/doc/local-authority/30UN,Area 3 - Parks/Leyland East West,Grounds Maint Cntrctrs Chgs,4657,materials & plant,07/10/2016,0000427267,714.10,Revenue,Reid Construction & Civil Engineering Ltd,131544
South Ribble Council,http://statistics.data.gov.uk/doc/local-authority/30UN,Regeneration,Capital Expenditure,C234,2x Lane closure at totem site Bamber Bridge,19/10/2016,0000427426,870.00,Revenue,Road Safety Services LTD,131989
South Ribble Council,http://statistics.data.gov.uk/doc/local-authority/30UN,Neighbourhood Admin & Support,Operational Furniture & Equip,4010,BAG LOOP - B05DL110,07/10/2016,0000427146,320.00,Revenue,ROBERT ACTON PRODUCTS DEVELOPMENTS,00014452
South Ribble Council,http://statistics.data.gov.uk/doc/local-authority/30UN,Democratic Services,Postage,4291,Postage,19/10/2016,0000426900,"2,375.36",Revenue,ROYAL MAIL GROUP PLC,00033543
South Ribble Council,http://statistics.data.gov.uk/doc/local-authority/30UN,Regeneration,Other Misc,4851,Hire of the Banqueting and Conference suite at Samlesbury Hotel for South Ribble Partnership AGM and Community Awards,28/10/2016,0000427487,"2,846.87",Revenue,SAMLESBURY HOTEL,131125
South Ribble Council,http://statistics.data.gov.uk/doc/local-authority/30UN,Property Services,Energy Costs,2304,23/6/16 to 22/9/16,21/10/2016,0000427516,841.93,Revenue,SCOTTISH HYDRO ELECTRIC,130051
South Ribble Council,http://statistics.data.gov.uk/doc/local-authority/30UN,Property Services,Energy Costs,2307,ccl,21/10/2016,0000427516,40.79,Revenue,SCOTTISH HYDRO ELECTRIC,130051
South Ribble Council,http://statistics.data.gov.uk/doc/local-authority/30UN,Property Services,Energy Costs,2303,2/7/16 to 1/10/16,26/10/2016,0000427528,419.50,Revenue,SCOTTISH HYDRO ELECTRIC,130051
South Ribble Council,http://statistics.data.gov.uk/doc/local-authority/30UN,Property Services,Energy Costs,2307,ccl,26/10/2016,0000427528,19.88,Revenue,SCOTTISH HYDRO ELECTRIC,130051
South Ribble Council,http://statistics.data.gov.uk/doc/local-authority/30UN,Property Services,Energy Costs,2303,1/9/16 to 30/9/16,26/10/2016,0000427535,970.41,Revenue,SCOTTISH HYDRO ELECTRIC,130051
South Ribble Council,http://statistics.data.gov.uk/doc/local-authority/30UN,Property Services,Energy Costs,2307,ccl,26/10/2016,0000427535,50.25,Revenue,SCOTTISH HYDRO ELECTRIC,130051
South Ribble Council,http://statistics.data.gov.uk/doc/local-authority/30UN,Property Services,Energy Costs,2303,1/9/16 to 30/9/16,26/10/2016,0000427537,"2,751.95",Revenue,SCOTTISH HYDRO ELECTRIC,130051
South Ribble Council,http://statistics.data.gov.uk/doc/local-authority/30UN,Property Services,Energy Costs,2307,ccl,26/10/2016,0000427537,143.85,Revenue,SCOTTISH HYDRO ELECTRIC,130051
South Ribble Council,http://statistics.data.gov.uk/doc/local-authority/30UN,Property Services,Energy Costs,2303,1/9/16 to 30/9/16,26/10/2016,0000427542,"1,728.35",Revenue,SCOTTISH HYDRO ELECTRIC,130051
South Ribble Council,http://statistics.data.gov.uk/doc/local-authority/30UN,Property Services,Energy Costs,2307,ccl,26/10/2016,0000427542,94.03,Revenue,SCOTTISH HYDRO ELECTRIC,130051
South Ribble Council,http://statistics.data.gov.uk/doc/local-authority/30UN,Scrutiny,Subs to Statutory Bodies,4720,North West Legal Consortium 2016 - 2017 Subscription,07/10/2016,0000427272,500.00,Revenue,SEFTON M B COUNCIL,00117058
South Ribble Council,http://statistics.data.gov.uk/doc/local-authority/30UN,Information Services,Professional Fees,4520,Shredding of Confidential Waste 2016/17,26/10/2016,0000427560,296.86,Revenue,SHRED-IT LTD,00109134
South Ribble Council,http://statistics.data.gov.uk/doc/local-authority/30UN,Information Services,Professional Fees,4520,Shredding of Confidential Waste 2016/17,26/10/2016,0000427561,395.81,Revenue,SHRED-IT LTD,00109134
South Ribble Council,http://statistics.data.gov.uk/doc/local-authority/30UN,Information Services,Professional Fees,4520,Shredding of Confidential Waste 2016/17,26/10/2016,0000427563,270.82,Revenue,SHRED-IT LTD,00109134
South Ribble Council,http://statistics.data.gov.uk/doc/local-authority/30UN,Environmental Health,Other Misc,4869,CSE Training for Taxi Drivers 31st August and 1st September,26/10/2016,0000427412,550.00,Revenue,SIGMA CONSULTANCY SERVICES LYTHAM LTD,132089
South Ribble Council,http://statistics.data.gov.uk/doc/local-authority/30UN,Environmental Health,Other Misc,4869,Travelling expenses for training - Lytham - Leyland,26/10/2016,0000427412,36.00,Revenue,SIGMA CONSULTANCY SERVICES LYTHAM LTD,132089
South Ribble Council,http://statistics.data.gov.uk/doc/local-authority/30UN,Area 2 - Waste Transport/Eastern & Central Teams,External Contractors Charges,4570,SIGNAGE TO BP16WLL - JFC7549 - PD,14/10/2016,0000427404,635.00,Revenue,SIGNS PRESTON LTD T/A SIGNS EXPRESS CENTRAL LANCS,131706
South Ribble Council,http://statistics.data.gov.uk/doc/local-authority/30UN,Area 2 - Waste Transport/Eastern & Central Teams,External Contractors Charges,4570,SIGNAGE TO BP16 WKL - JFC7550 - PD,14/10/2016,0000427404,635.00,Revenue,SIGNS PRESTON LTD T/A SIGNS EXPRESS CENTRAL LANCS,131706
South Ribble Council,http://statistics.data.gov.uk/doc/local-authority/30UN,Area 2 - Waste Transport/Eastern & Central Teams,External Contractors Charges,4570,SIGNAGE TO BP16 WKG - JFC7551 - PD,14/10/2016,0000427404,635.00,Revenue,SIGNS PRESTON LTD T/A SIGNS EXPRESS CENTRAL LANCS,131706
South Ribble Council,http://statistics.data.gov.uk/doc/local-authority/30UN,Area 2 - Waste Transport/Eastern & Central Teams,External Contractors Charges,4570,SIGNAGE TO BP16 WKC - JFC7552 - PD,14/10/2016,0000427404,635.00,Revenue,SIGNS PRESTON LTD T/A SIGNS EXPRESS CENTRAL LANCS,131706
South Ribble Council,http://statistics.data.gov.uk/doc/local-authority/30UN,Area 3 - Parks/Leyland East West,Grounds Maint Cntrctrs Chgs,4657,RE-INSTATEMENT WORKS TO THE FIELD AT WORDEN PARK - DAMAGED BY THE CIRCUS AS PER QUOTATION DATED,19/10/2016,0000427439,600.00,Revenue,Singleton Landwork Ltd,131959
South Ribble Council,http://statistics.data.gov.uk/doc/local-authority/30UN,Neighbourhood Admin & Support,Materials General,4040,HAND WIPES (200 TUB) - WET WIPES - 30008,28/10/2016,0000427506,216.00,Revenue,SPALDINGS,00070849
South Ribble Council,http://statistics.data.gov.uk/doc/local-authority/30UN,Neighbourhood Admin & Support,Materials General,4040,LINE MARKER ROAD PAINT - WHITE 750mm CAN - 08637,28/10/2016,0000427506,32.28,Revenue,SPALDINGS,00070849
South Ribble Council,http://statistics.data.gov.uk/doc/local-authority/30UN,Neighbourhood Admin & Support,Operational Furniture & Equip,4010,BOW SAW 21� - 21254,28/10/2016,0000427506,39.68,Revenue,SPALDINGS,00070849
South Ribble Council,http://statistics.data.gov.uk/doc/local-authority/30UN,Neighbourhood Admin & Support,Operational Furniture & Equip,4010,LANDSCAPE RAKE COMPLETE (24 TINE) - 04188,28/10/2016,0000427506,41.40,Revenue,SPALDINGS,00070849
South Ribble Council,http://statistics.data.gov.uk/doc/local-authority/30UN,Neighbourhood Admin & Support,Operational Furniture & Equip,4010,BULLDOG PREMIER PRUNING SAW - 30693,28/10/2016,0000427506,41.76,Revenue,SPALDINGS,00070849
South Ribble Council,http://statistics.data.gov.uk/doc/local-authority/30UN,Neighbourhood Admin & Support,Operational Furniture & Equip,4010,HOE -C/W 60`` HANDLE - 21045,28/10/2016,0000427612,80.25,Revenue,SPALDINGS,00070849
South Ribble Council,http://statistics.data.gov.uk/doc/local-authority/30UN,Neighbourhood Admin & Support,Operational Furniture & Equip,4010,HAND SHEARS  - 27308,28/10/2016,0000427612,14.37,Revenue,SPALDINGS,00070849
South Ribble Council,http://statistics.data.gov.uk/doc/local-authority/30UN,Neighbourhood Admin & Support,Operational Furniture & Equip,4010,1004133 - SHOVEL - Bulldog Standard Square Mouth with T Handle - Size 2 - 30620,28/10/2016,0000427612,109.12,Revenue,SPALDINGS,00070849
South Ribble Council,http://statistics.data.gov.uk/doc/local-authority/30UN,Neighbourhood Admin & Support,Materials General,4040,DUCT TAPE - 50mm - 08272,28/10/2016,0000427612,34.44,Revenue,SPALDINGS,00070849
South Ribble Council,http://statistics.data.gov.uk/doc/local-authority/30UN,Neighbourhood Admin & Support,Materials General,4040,RED AND WHITE ZEBRA TAPE - EURO TAPE - 26651,28/10/2016,0000427612,21.42,Revenue,SPALDINGS,00070849
South Ribble Council,http://statistics.data.gov.uk/doc/local-authority/30UN,Neighbourhood Admin & Support,Operational Furniture & Equip,4010,LITTER PICKER  - HA340,26/10/2016,0000427614,673.20,Revenue,SPALDINGS,00070849
South Ribble Council,http://statistics.data.gov.uk/doc/local-authority/30UN,Development Enterprise & Comm Mgnt,Other Misc,485I,"Attending meetings @ 100 Writing/development of educational programme proposal @ 250",19/10/2016,0000427442,350.00,Revenue,STEMFirst Ltd,132095
South Ribble Council,http://statistics.data.gov.uk/doc/local-authority/30UN,Area 1 - Penwortham Western Parishes,Balance Sheet,0030,"1 Nest Box & Camera (Product no. 10714) @83.22 5 Samplings trays small (Product no. 11025) @2.50 each 5 Pooters",12/10/2016,0000426935,316.92,Revenue,STOW AGRICULTURAL LTD T/A WILDCARE,131823
South Ribble Council,http://statistics.data.gov.uk/doc/local-authority/30UN,Scrutiny,Subs to Statutory Bodies,4720,Gold - professional plan - NAME REDACTED October 2016 - October 2017,14/10/2016,0000427384,299.00,Revenue,SURVEY MONKEY,130943
South Ribble Council,http://statistics.data.gov.uk/doc/local-authority/30UN,Neighbourhood Admin & Support,Operational Furniture & Equip,4010,PERRY RESCUE LINES,26/10/2016,0000427628,280.00,Revenue,SURVITEC SERVICE AND DISTRIBUTION,130319
South Ribble Council,http://statistics.data.gov.uk/doc/local-authority/30UN,Neighbourhood Admin & Support,Operational Furniture & Equip,4010,carriage,26/10/2016,0000427628,15.00,Revenue,SURVITEC SERVICE AND DISTRIBUTION,130319
South Ribble Council,http://statistics.data.gov.uk/doc/local-authority/30UN,Property Services,Cleaning and Domestic Supplies,2711,Provision of cleaning & janitorial products for the civic centre caretakers,07/10/2016,0000427229,288.44,Revenue,SWIFT KLEEN,00119360
South Ribble Council,http://statistics.data.gov.uk/doc/local-authority/30UN,Area 2 - Waste Transport/Eastern & Central Teams,Materials General,4040,spec repair PJ62UCL,14/10/2016,0000427086,"2,584.69",Revenue,TERBERG MATEC UK LTD,00058625
South Ribble Council,http://statistics.data.gov.uk/doc/local-authority/30UN,Regeneration,Other Misc,4851,200 x South Ribble Partnership AGM Brochures,19/10/2016,0000427427,362.00,Revenue,TOWNSEND PRINT SERVICES LTD,00037170
South Ribble Council,http://statistics.data.gov.uk/doc/local-authority/30UN,Regeneration,Consultancy Fees,4541,"Final month rental of room ADDRESS REDACTED covering from 1st October 2016 to 31st October 2016 Monthly rent - 250.00",28/10/2016,0000427357,281.25,Revenue,Tustin Developments Limited,131628
South Ribble Council,http://statistics.data.gov.uk/doc/local-authority/30UN,Regeneration,Consultancy Fees,4541,credit raised to cancel invoice,28/10/2016,0000427641,843.75,Revenue,Tustin Developments Limited,131628
South Ribble Council,http://statistics.data.gov.uk/doc/local-authority/30UN,Property Services,Other Misc,485R,refund,05/10/2016,0000427127,699.43,Revenue,UNITED UTILITIES WATER PLC,00029845
South Ribble Council,http://statistics.data.gov.uk/doc/local-authority/30UN,Property Services,Professional Fees,4510,carry out valuation for disposal of Council interest at Lostock View Trading Estate to include marriage value/special purchase,14/10/2016,0000427338,"1,328.18",Revenue,VALUATION OFFICE AGENCY,130017
South Ribble Council,http://statistics.data.gov.uk/doc/local-authority/30UN,Area 1 - Penwortham Western Parishes,Operational Furniture & Equip,4013,Renewal of Annual Support & Maintenance for the Vemotion CCTV system at Leyland Roundabout from 30.9.16 - 29.9.17 Main,05/10/2016,0000426941,"1,363.00",Revenue,Vemotion Interactive Ltd,131574
South Ribble Council,http://statistics.data.gov.uk/doc/local-authority/30UN,Property Services,Operational Furniture & Equip,4012,2016 / 2017 rental fees for vending machines at the Civic Centre from September 2016 to March 2017,05/10/2016,0000427119,322.09,Revenue,VENDING ENTERPRISES,00101501
South Ribble Council,http://statistics.data.gov.uk/doc/local-authority/30UN,Information Services,Processing-Internal,4212,Annual purchase order for GSi Convergence Framework for period 01/04/16 - 31/03/17,07/10/2016,0000427217,"2,576.63",Revenue,VODAFONE RE:CABLE & WIRELESS UK,130810
South Ribble Council,http://statistics.data.gov.uk/doc/local-authority/30UN,Information Services,Peripherals,4247,"Annual purchase order for link, internet & router for period 01/04/16 - 31/03/17",07/10/2016,0000427218,"1,312.66",Revenue,VODAFONE RE:CABLE & WIRELESS UK,130810
South Ribble Council,http://statistics.data.gov.uk/doc/local-authority/30UN,Property Services,Rep & Maint Premises,2020,Professional services rendered in providing architectural services for ADDRESS REDACTED inv number 16/17/26 this order,19/10/2016,0000427226,"4,320.00",Revenue,Watson Stirrup Architects Ltd,131433
South Ribble Council,http://statistics.data.gov.uk/doc/local-authority/30UN,Revenues Plus,Postage,4291,Revenues mail services September 2016,05/10/2016,0000427131,324.24,Revenue,WHISTL  UK LTD,131310
South Ribble Council,http://statistics.data.gov.uk/doc/local-authority/30UN,Revenues Plus,Postage,4291,Revenues mail services September 2016,05/10/2016,0000427135,489.16,Revenue,WHISTL  UK LTD,131310
South Ribble Council,http://statistics.data.gov.uk/doc/local-authority/30UN,Revenues Plus,Postage,4291,Revenues mail services September 2016,12/10/2016,0000427270,376.75,Revenue,WHISTL  UK LTD,131310
South Ribble Council,http://statistics.data.gov.uk/doc/local-authority/30UN,Revenues Plus,Postage,4291,Revenues mail services October 2016,21/10/2016,0000427479,445.19,Revenue,WHISTL  UK LTD,131310
South Ribble Council,http://statistics.data.gov.uk/doc/local-authority/30UN,Revenues Plus,Postage,4291,Revenues mail services October 2016,26/10/2016,0000427606,447.55,Revenue,WHISTL  UK LTD,131310
South Ribble Council,http://statistics.data.gov.uk/doc/local-authority/30UN,HR & Communications,Consultancy Fees,4541,WORK CARRIED OUT BETWEEN 30.6.2016 - 31.8.2016,19/10/2016,0000427376,"1,476.00",Revenue,WILKIN CHAPMAN LLP,131825
South Ribble Council,http://statistics.data.gov.uk/doc/local-authority/30UN,Scrutiny,Other Misc,4851,For work carried out in respect of the Taxi Licensing Review between 4 April and 24 June 2016 including expenses,21/10/2016,0000427582,"24,794.58",Revenue,WILKIN CHAPMAN LLP,131825
South Ribble Council,http://statistics.data.gov.uk/doc/local-authority/30UN,Area 3 - Parks/Leyland East West,Capital Expenditure,C230,"RECONSTRUCTION OF MAIN CAR PARK AND ENTRANCE, WORDEN PARK, LEYLAND",07/10/2016,0000427210,"5,928.32",Revenue,WILLIAM PYE LTD,00031590
South Ribble Council,http://statistics.data.gov.uk/doc/local-authority/30UN,Area 1 - Penwortham Western Parishes,Grounds Maintanance,2040,"Station Car Park, Leyland - Pot Hole Repairs As per Quotation 16028",19/10/2016,0000427388,"1,775.00",Revenue,WILLIAM PYE LTD,00031590
South Ribble Council,http://statistics.data.gov.uk/doc/local-authority/30UN,Property Services,Rep & Maint Premises,2020,attend ADDRESS REDACTED on 2nd September to connect up toilets from 32mm copper pipe and install a temporary sink,05/10/2016,0000427124,446.50,Revenue,Wright Build Limited,131203
South Ribble Council,http://statistics.data.gov.uk/doc/local-authority/30UN,Property Services,Rep & Maint Premises,2020,attend Leyland market caf� to replace the immersion heater in the bottom tank of the water boiler. the caf� open 6 days a week,26/10/2016,0000427633,250.50,Revenue,Wright Build Limited,131203
South Ribble Council,http://statistics.data.gov.uk/doc/local-authority/30UN,Development Enterprise & Comm Mgnt,Other Misc,485I,"A1 newsletter collage, which costs 70 plus VAT One off A1 full colour print on a 200gsm satin paper cost 40 VAT Delivery",19/10/2016,0000427486,"2,485.00",Revenue,WRITE ANGLE PR & MARKETING LTD,00095303
South Ribble Council,http://statistics.data.gov.uk/doc/local-authority/30UN,Legal,Capital Expenditure,C234,Acquisition of Land at Moss Side Playing Fields,05/10/2016,0000426930,390.00,Revenue,XPressLegal Services,132037
